bitfinex/quotes_BTCUSD_20260308
["timestamp","ask_amount","ask_price","bid_price","bid_amount"]
[1773009735206,0.36873137,66025.0,66008.0,0.07676675]
[1773009735430,0.00216994,66024.0,66008.0,0.00101853]
[1773009735626,0.37239871,66023.0,66007.0,0.05667044]
[1773009735781,0.37083871,66022.0,66007.0,0.05678899]
[1773009735975,0.36873137,66022.0,66007.0,0.13253827]
[1773009737028,0.36873137,66022.0,66007.0,0.05678899]
[1773009737228,0.07573347,66021.0,66007.0,0.05678899]
[1773009737439,0.44446484,66021.0,66007.0,0.13253845]
[1773009738631,0.0019183,66019.0,66004.0,0.0005456]
[1773009738972,0.0019183,66019.0,66001.0,0.0002]
[1773009738973,0.37064967,66016.0,66001.0,0.0002]
[1773009739151,0.37064967,66016.0,66001.0,0.07595544]
[1773009739324,0.37064967,66016.0,66001.0,0.41089627]
[1773009739325,0.07574036,66015.0,66001.0,0.41089627]
[1773009739523,0.00156,66014.0,66001.0,0.41089627]
[1773009740362,0.00156,66013.0,66001.0,0.41089627]
[1773009740573,0.07574036,66015.0,66003.0,0.36544579]
[1773009740776,0.07574036,66015.0,66001.0,0.0002]
[1773009740777,0.00156,66014.0,66004.0,0.04525048]
[1773009740971,0.00156,66017.0,66006.0,0.36544579]
[1773009741306,0.00156,66017.0,66005.0,0.04525048]
[1773009741506,0.07573921,66016.0,66006.0,0.07575068]
[1773009742064,0.07573921,66017.0,66006.0,0.07575068]
[1773009742267,0.07729706,66018.0,66007.0,0.41069627]
[1773009742506,0.07573921,66017.0,66007.0,0.41069627]
[1773009742706,0.07729921,66017.0,66007.0,0.41069627]
[1773009743108,0.07573921,66017.0,66007.0,0.41069627]
[1773009743288,0.00156,66016.0,66007.0,0.41069627]
[1773009743707,0.07730036,66015.0,66008.0,0.07574839]
[1773009743899,0.00156,66015.0,66008.0,0.07574839]
[1773009744103,0.03374641,66017.0,66008.0,0.07574839]
[1773009744285,0.00156,66016.0,66008.0,0.07574839]
[1773009744623,0.07729921,66016.0,66008.0,0.07574839]
[1773009745123,0.07729921,66016.0,66008.0,0.07583719]
[1773009745625,0.00156,66016.0,66008.0,0.07583719]
[1773009745981,0.00022001,66021.0,66008.0,0.07583719]
[1773009746333,0.00156,66020.0,66012.0,0.04525048]
[1773009746498,0.00156,66019.0,66013.0,0.36544579]
[1773009746705,0.00156,66019.0,66015.0,0.04525048]
[1773009746906,0.07595354,66021.0,66009.0,0.04525048]
[1773009747107,0.00156,66020.0,66010.0,0.04525048]
[1773009747553,0.07595354,66021.0,66009.0,0.36553459]
[1773009747554,0.00178001,66021.0,66013.0,0.36544579]
[1773009747845,0.00156,66026.0,66017.0,0.41279205]
[1773009748606,0.00156,66025.0,66017.0,0.41279205]
[1773009748821,0.00022001,66021.0,66018.0,0.04734626]
[1773009749223,0.00156,66025.0,66019.0,0.36544579]
[1773009749452,0.00156,66025.0,66017.0,0.04734626]
[1773009749794,0.00156,66025.0,66018.0,0.07573692]
[1773009749976,0.00156,66026.0,66018.0,0.07573692]
[1773009751184,0.07572226,66031.0,66019.0,0.04734626]
[1773009751406,0.00156,66027.0,66019.0,0.04734626]
[1773009751699,0.00023,66032.0,66021.0,0.04734626]
[1773009751896,0.00156,66030.0,66025.0,0.36544579]
[1773009752079,0.00156,66030.0,66026.0,0.04734626]
[1773009753756,0.00156,66030.0,66027.0,0.07572659]
[1773009755717,0.00156,66030.0,66025.0,0.07572788]
[1773009755718,0.07750318,66030.0,66025.0,0.07572788]
[1773009756118,0.00178001,66030.0,66025.0,0.07572788]
[1773009757293,0.00278001,66030.0,66023.0,0.07573118]
[1773009757699,0.07750347,66030.0,66022.0,0.12307859]
[1773009757898,0.3798043,66029.0,66011.0,0.04734626]
[1773009758094,0.3798043,66029.0,66010.0,0.07574609]
[1773009758674,0.00156,66028.0,66011.0,0.04734626]
[1773009758873,0.00156,66028.0,66011.0,0.35215919]
[1773009759119,0.07594347,66030.0,66010.0,0.07574609]
[1773009759120,0.07594347,66030.0,66012.0,0.04734626]
[1773009759319,0.00156,66029.0,66015.0,0.35215919]
[1773009759516,0.07572544,66028.0,66019.0,0.04734626]
[1773009759717,0.07572544,66028.0,66021.0,0.04734626]
[1773009759925,0.00156,66027.0,66021.0,0.04734626]
[1773009761797,0.00023,66032.0,66023.0,0.35215919]
[1773009761997,0.00023,66032.0,66026.0,0.35215919]
[1773009762219,0.00023,66032.0,66027.0,0.35215919]
[1773009762417,0.00544,66040.0,66028.0,0.04734626]
[1773009762647,0.00156,66035.0,66031.0,0.35215919]
[1773009762792,0.00156,66035.0,66032.0,0.04734626]
[1773009763239,0.07592812,66044.0,66032.0,0.04734626]
[1773009763240,0.07571057,66041.0,66032.0,0.04734626]
[1773009763441,0.17570037,66050.0,66034.0,0.04734626]
[1773009763615,0.17581899,66050.0,66037.0,0.35215919]
[1773009763821,0.17581899,66050.0,66039.0,0.12305909]
[1773009763822,0.00156,66049.0,66039.0,0.12305909]
[1773009764208,0.10011862,66050.0,66039.0,0.12305909]
[1773009764404,0.3798043,66048.0,66037.0,0.07571419]
[1773009764874,0.3798043,66048.0,66027.0,0.07572609]
[1773009765078,0.3798043,66048.0,66014.0,0.05298626]
[1773009765278,0.3798043,66048.0,66015.0,0.07573925]
[1773009765834,0.3798043,66046.0,66015.0,0.07573925]
[1773009766020,0.3798043,66046.0,66015.0,0.12308551]
[1773009766215,0.3798043,66044.0,66015.0,0.12308551]
[1773009766786,0.18344256,66040.0,66014.0,0.00564]
[1773009766991,0.3813643,66039.0,66008.0,0.00023]
[1773009767143,0.3813643,66039.0,66008.0,0.07597733]
[1773009767343,0.3813643,66039.0,66008.0,0.00023]
[1773009767566,0.3798043,66037.0,66008.0,0.00023]
[1773009767772,0.3798043,66029.0,66008.0,0.00023]
[1773009767975,0.3798043,66027.0,66002.0,0.07575417]
[1773009768179,0.3798043,66027.0,66004.0,0.07595269]
[1773009768994,0.3798043,66027.0,66004.0,0.07607113]
[1773009769533,0.3813643,66026.0,66006.0,0.04734626]
[1773009769732,0.3798043,66026.0,66007.0,0.04734626]
[1773009769939,0.07573003,66024.0,66008.0,0.07574839]
[1773009770215,0.07573003,66024.0,66009.0,0.0002]
[1773009770417,0.00156,66023.0,66010.0,0.04734626]
[1773009770635,0.07573003,66024.0,66011.0,0.35215919]
[1773009770837,0.00156,66022.0,66009.0,0.0002]
[1773009771039,0.00156,66022.0,66010.0,0.35215919]
[1773009771198,0.0170491,66024.0,66012.0,0.04734626]
[1773009771403,0.00156,66023.0,66016.0,0.04734626]
[1773009771612,0.00156,66023.0,66009.0,0.0002]
[1773009771819,0.00156,66022.0,66012.0,0.0757438]
[1773009772070,0.00156,66022.0,66013.0,0.04734626]
[1773009772218,0.00156,66022.0,66016.0,0.35215919]
[1773009772572,0.00156,66029.0,66014.0,0.35215919]
[1773009772704,0.00156,66032.0,66018.0,0.04734626]
[1773009773060,0.00156,66032.0,66029.0,0.35215919]
[1773009773261,0.00156,66033.0,66031.0,0.35215919]
[1773009773464,0.00156,66033.0,66032.0,0.04734626]
[1773009773663,0.00156,66033.0,66020.0,0.35215919]
[1773009773839,0.00156,66033.0,66024.0,0.07573003]
[1773009774018,0.00156,66033.0,66027.0,0.35215919]
[1773009774242,0.08069092,66040.0,66029.0,0.35215919]
[1773009774448,0.00156,66039.0,66030.0,0.35215919]
[1773009774609,0.00156,66039.0,66031.0,0.04734626]
[1773009775014,0.00509765,66040.0,66031.0,0.04734626]
[1773009775256,0.00156,66039.0,66032.0,0.04734626]
[1773009776158,0.00156,66039.0,66033.0,0.07571971]
[1773009778917,0.00156,66038.0,66032.0,0.07572086]
[1773009780004,0.00156,66037.0,66032.0,0.07572086]
[1773009780204,0.00156,66037.0,66032.0,0.0283746]
[1773009782224,0.12879837,66050.0,66032.0,0.04734626]
[1773009782402,0.12879837,66050.0,66034.0,0.04734626]
[1773009782615,0.3798043,66049.0,66032.0,0.0001186]
[1773009783403,0.12879837,66050.0,66033.0,0.04734626]
[1773009783798,0.48111002,66050.0,66033.0,0.04734626]
[1773009784546,0.48111002,66050.0,66034.0,0.07571856]
[1773009784708,0.35100391,66049.0,66034.0,0.07571856]
[1773009785826,0.00156,66048.0,66034.0,0.07571856]
[1773009786035,0.00156,66048.0,66035.0,0.04734626]
[1773009786426,0.07570366,66047.0,66036.0,0.07571627]
[1773009786627,0.07570366,66047.0,66036.0,0.12306253]
[1773009786832,0.07570366,66047.0,66036.0,0.07571627]
[1773009787071,0.07570366,66047.0,66037.0,0.04734626]
[1773009787251,0.07570366,66047.0,66036.0,0.07571627]
[1773009787470,0.00156,66046.0,66036.0,0.07571627]
[1773009789293,0.07726487,66046.0,66036.0,0.12306253]
[1773009789678,0.07726497,66046.0,66034.0,0.07571627]
[1773009789892,0.35100391,66039.0,66001.0,0.0002]
[1773009790082,0.35100391,66035.0,66005.0,0.11844858]
[1773009790285,0.04289255,66032.0,66009.0,0.07594704]
[1773009790488,0.35100391,66029.0,66009.0,0.07594704]
[1773009790717,0.04289255,66026.0,66009.0,0.07594704]
[1773009791023,0.07573233,66022.0,66009.0,0.075947]
[1773009791222,0.00156,66021.0,66009.0,0.075947]
[1773009792127,0.07573233,66022.0,66011.0,0.04269744]
[1773009792425,0.00156,66021.0,66011.0,0.04269744]
[1773009792791,0.00156,66021.0,66009.0,0.075947]
[1773009793624,0.07573462,66020.0,66009.0,0.075907]
[1773009794705,0.07573462,66020.0,66009.0,0.11860444]
[1773009794907,0.07729462,66021.0,66009.0,0.11860444]
[1773009794908,0.07729462,66021.0,66010.0,0.04269744]
[1773009795116,0.00156,66020.0,66010.0,0.04269744]
[1773009795472,0.07572889,66025.0,66011.0,0.07574495]
[1773009795668,0.00156,66024.0,66011.0,0.07574495]
[1773009796098,0.00156,66023.0,66011.0,0.07574495]
[1773009796415,0.00156,66022.0,66011.0,0.38039279]
[1773009796610,0.00156,66022.0,66010.0,0.07574495]
[1773009796813,0.07572889,66025.0,66012.0,0.04269744]
[1773009797024,0.00156,66021.0,66010.0,0.07574495]
[1773009797318,0.04289255,66024.0,66010.0,0.07574495]
[1773009797520,0.4267328,66026.0,66010.0,0.07574495]
[1773009797521,0.07573577,66019.0,66010.0,0.07574495]
[1773009798174,0.07729468,66020.0,66011.0,0.04269744]
[1773009798761,0.07729468,66020.0,66011.0,0.04281588]
[1773009800733,0.07729468,66020.0,66011.0,0.00011844]
[1773009800979,0.04289255,66018.0,66008.0,0.00043]
[1773009801140,0.04301104,66018.0,66007.0,0.07574928]
[1773009801339,0.00156,66017.0,66008.0,0.04269744]
[1773009801544,0.00156,66017.0,66009.0,0.04269744]
[1773009801751,0.00156,66017.0,66010.0,0.04289744]
[1773009802205,0.00156,66017.0,66010.0,0.0002]
[1773009802775,0.00156,66016.0,66012.0,0.0757438]
[1773009802977,0.00156,66015.0,66014.0,0.04269744]
[1773009803172,0.07572834,66026.0,66015.0,0.38039279]
[1773009803486,0.00156,66025.0,66016.0,0.04269744]
[1773009803686,0.07572787,66026.0,66016.0,0.04269744]
[1773009803907,0.00156,66024.0,66016.0,0.04269744]
[1773009804864,0.00023,66032.0,66020.0,0.38039279]
[1773009805068,0.00156,66037.0,66021.0,0.38039279]
[1773009805327,0.07592407,66047.0,66022.0,0.00156]
[1773009805506,0.00156,66043.0,66027.0,0.04269744]
[1773009805705,0.00156,66043.0,66026.0,0.38039279]
[1773009805706,0.00156,66043.0,66030.0,0.38039279]
[1773009805993,0.00156,66042.0,66034.0,0.38039279]
[1773009806212,0.00156,66042.0,66035.0,0.42309023]
[1773009806418,0.00156,66042.0,66035.0,0.04269744]
[1773009806599,0.002,66042.0,66035.0,0.04269744]
[1773009806784,0.002,66042.0,66035.0,0.42309023]
[1773009807222,0.002,66042.0,66036.0,0.07571627]
[1773009807938,0.00033861,66044.0,66036.0,0.07571627]
[1773009808234,0.00156,66044.0,66039.0,0.04269744]
[1773009808397,0.00156,66044.0,66040.0,0.42309023]
[1773009808595,0.00022001,66047.0,66040.0,0.42309023]
[1773009808896,0.00022001,66047.0,66041.0,0.04269744]
[1773009809101,0.00156,66046.0,66041.0,0.04269744]
[1773009809307,0.00022001,66054.0,66044.0,0.38039279]
[1773009809527,0.0007,66056.0,66046.0,0.38039279]
[1773009809528,0.00156,66056.0,66046.0,0.38039279]
[1773009809726,0.00022001,66057.0,66049.0,0.04269744]
[1773009809950,0.00156,66055.0,66049.0,0.04269744]
[1773009810728,0.16575789,66060.0,66051.0,0.04269744]
[1773009811042,0.00156,66059.0,66051.0,0.04269744]
[1773009811265,0.090069,66060.0,66052.0,0.07569793]
[1773009811406,0.00022001,66074.0,66055.0,0.04269744]
[1773009811611,0.0017734,66063.0,66056.0,0.04269744]
[1773009812047,0.0017734,66063.0,66053.0,0.38039279]
[1773009812048,0.00022001,66060.0,66053.0,0.38039279]
[1773009812241,0.04311256,66060.0,66047.0,0.07570352]
[1773009812827,0.0017734,66063.0,66047.0,0.07570352]
[1773009813217,0.07589648,66071.0,66049.0,0.35300043]
[1773009813394,0.07629171,66071.0,66055.0,0.04269744]
[1773009813527,0.00156,66070.0,66058.0,0.35300043]
[1773009813738,0.07629171,66071.0,66058.0,0.35300043]
[1773009813937,0.00156,66070.0,66060.0,0.39569787]
[1773009814195,0.00156,66069.0,66060.0,0.39569787]
[1773009815179,0.00156,66069.0,66060.0,0.04269744]
[1773009815389,0.0756796,66068.0,66061.0,0.07568762]
[1773009816798,0.00156,66067.0,66056.0,0.07569257]
[1773009817579,0.37459455,66066.0,66043.0,0.07570739]
[1773009817780,0.04289255,66064.0,66045.0,0.04269744]
[1773009818006,0.04289255,66064.0,66045.0,0.04425744]
[1773009818239,0.04289255,66064.0,66046.0,0.04269744]
[1773009818782,0.04289255,66064.0,66047.0,0.045096]
[1773009819846,0.00156,66064.0,66050.0,0.045096]
[1773009820046,0.00156,66064.0,66053.0,0.35300043]
[1773009820245,0.00156,66065.0,66056.0,0.045096]
[1773009820447,0.00156,66065.0,66057.0,0.39809643]
[1773009820648,0.00022001,66068.0,66057.0,0.045096]
[1773009820852,0.00022001,66068.0,66060.0,0.045096]
[1773009821023,0.00156,66067.0,66060.0,0.045096]
[1773009821428,0.0453273,66065.0,66035.0,0.045096]
[1773009821641,0.0453273,66061.0,66034.0,0.07593194]
[1773009821873,0.0453273,66056.0,66034.0,0.07593194]
[1773009822100,0.37459455,66054.0,66034.0,0.07593194]
[1773009822373,0.0468873,66053.0,66035.0,0.35300043]
[1773009822574,0.0468873,66053.0,66035.0,0.39809643]
[1773009822772,0.0453273,66053.0,66035.0,0.39809643]
[1773009822926,0.00156,66052.0,66035.0,0.39809643]
[1773009823126,0.0468873,66052.0,66035.0,0.39809643]
[1773009823758,0.07569908,66051.0,66036.0,0.07571627]
[1773009823958,0.00156,66050.0,66039.0,0.35300043]
[1773009824171,0.00156,66050.0,66036.0,0.07727627]
[1773009824172,0.00156,66050.0,66041.0,0.35300043]
[1773009824374,0.07569908,66052.0,66041.0,0.35300043]
[1773009824581,0.00156,66051.0,66041.0,0.35300043]
[1773009824783,0.07569793,66054.0,66041.0,0.35300043]
[1773009824984,0.00156,66053.0,66042.0,0.39809643]
[1773009825185,0.00195523,66053.0,66042.0,0.39809643]
[1773009825586,0.00039523,66053.0,66042.0,0.35456043]
[1773009825813,0.07569409,66056.0,66043.0,0.35300043]
[1773009826014,0.00156,66055.0,66045.0,0.47380238]
[1773009826319,0.12101792,66059.0,66045.0,0.47380238]
[1773009826479,0.00156,66056.0,66045.0,0.47380238]
[1773009826675,0.00156,66058.0,66047.0,0.045096]
[1773009826881,0.00156,66058.0,66047.0,0.39809643]
[1773009827081,0.0453273,66056.0,66025.0,0.39809643]
[1773009827284,0.37459455,66053.0,66032.0,0.07595084]
[1773009827483,0.0453273,66050.0,66032.0,0.07595084]
[1773009827848,0.0453273,66047.0,66032.0,0.07595084]
[1773009828064,0.0453273,66045.0,66032.0,0.07595084]
[1773009828230,0.0453273,66045.0,66032.0,0.00023]
[1773009828536,0.0453273,66042.0,66032.0,0.00023]
[1773009830038,0.12103784,66041.0,66032.0,0.00023]
[1773009830222,0.00156,66040.0,66032.0,0.00023]
[1773009832108,0.07571283,66039.0,66032.0,0.00023]
[1773009832894,0.07571283,66039.0,66029.0,0.07572355]
[1773009832895,0.0453273,66037.0,66023.0,0.07573049]
[1773009833039,0.0453273,66035.0,66014.0,0.00544]
[1773009833239,0.0453273,66031.0,66008.0,0.00226]
[1773009833493,0.0453273,66029.0,66011.0,0.07595833]
[1773009833791,0.00156,66028.0,66011.0,0.07595833]
[1773009833937,0.00156,66027.0,66012.0,0.39809643]
[1773009834141,0.07572774,66026.0,66013.0,0.07574265]
[1773009834778,0.07572774,66026.0,66013.0,0.07585205]
[1773009835386,0.07728774,66026.0,66018.0,0.35320043]
[1773009835599,0.07571398,66038.0,66019.0,0.045096]
[1773009835890,0.0453273,66036.0,66019.0,0.35300043]
[1773009836250,0.07571742,66035.0,66020.0,0.42873505]
[1773009836459,0.07571742,66035.0,66022.0,0.35300043]
[1773009836845,0.37459455,66034.0,66018.0,0.07593621]
[1773009837042,0.0453273,66031.0,66018.0,0.0002]
[1773009837243,0.0453273,66026.0,66009.0,0.0002]
[1773009837461,0.00156,66030.0,66009.0,0.0002]
[1773009837462,0.37459455,66023.0,66010.0,0.07606454]
[1773009837698,0.0468873,66022.0,66010.0,0.07606454]
[1773009838802,0.07573347,66021.0,66010.0,0.07606454]
[1773009839444,0.00156,66022.0,66011.0,0.35300043]
[1773009839594,0.00156,66022.0,66013.0,0.35300043]
[1773009839799,0.07729241,66022.0,66013.0,0.39809643]
[1773009840158,0.00156,66023.0,66013.0,0.39809643]
[1773009840515,0.07572828,66026.0,66010.0,0.07606454]
[1773009840516,0.00156,66024.0,66015.0,0.35300043]
[1773009840714,0.00156,66024.0,66017.0,0.42873849]
[1773009841402,0.07572981,66025.0,66017.0,0.42873849]
[1773009841608,0.07728981,66025.0,66017.0,0.42873849]
[1773009841800,0.07728981,66025.0,66017.0,0.07573806]
[1773009842027,0.07728981,66025.0,66016.0,0.07573806]
[1773009843208,0.07572114,66032.0,66014.0,0.07574102]
[1773009843409,0.077282,66031.0,66017.0,0.36563014]
[1773009843622,0.077282,66031.0,66018.0,0.41072614]
[1773009843822,0.075722,66031.0,66018.0,0.41072614]
[1773009844022,0.00156,66030.0,66018.0,0.41072614]
[1773009844573,0.00156,66029.0,66018.0,0.41072614]
[1773009845324,0.07572544,66028.0,66019.0,0.07573577]
[1773009845804,0.07572544,66028.0,66015.0,0.07574036]
[1773009845805,0.0453273,66027.0,66015.0,0.07574036]
[1773009846676,0.07571475,66038.0,66016.0,0.04401644]
[1773009846891,0.00156,66037.0,66020.0,0.04401644]
[1773009847107,0.00156,66037.0,66022.0,0.04401644]
[1773009847298,0.00156,66037.0,66025.0,0.36794395]
[1773009847586,0.07571627,66036.0,66027.0,0.07572659]
[1773009847789,0.07571627,66036.0,66026.0,0.11974303]
[1773009847991,0.07571627,66036.0,66026.0,0.07572659]
[1773009849364,0.35451333,66033.0,66015.0,0.07574036]
[1773009849542,0.04328539,66032.0,66015.0,0.07730036]
[1773009849738,0.35451333,66033.0,66015.0,0.07730036]
[1773009849739,0.04328539,66030.0,66015.0,0.07730036]
[1773009849941,0.04328539,66030.0,66016.0,0.00156]
[1773009850726,0.00156,66031.0,66016.0,0.00156]
[1773009850871,0.0772755,66037.0,66018.0,0.36794395]
[1773009851071,0.0772755,66037.0,66020.0,0.36794395]
[1773009851277,0.0772755,66037.0,66022.0,0.36794395]
[1773009851479,0.0772755,66037.0,66025.0,0.41051127]
[1773009851998,0.00156,66036.0,66025.0,0.41051127]
[1773009853906,0.07727729,66036.0,66026.0,0.07572774]
[1773009855724,0.00156,66036.0,66028.0,0.07572544]
[1773009856091,0.07727675,66036.0,66029.0,0.04256732]
[1773009856647,0.07727675,66036.0,66027.0,0.07572544]
[1773009857073,0.07749676,66036.0,66027.0,0.07572544]
[1773009858237,0.07749676,66036.0,66026.0,0.07572722]
[1773009858546,0.07749676,66036.0,66027.0,0.04256732]
[1773009858743,0.00178001,66036.0,66027.0,0.41051127]
[1773009859290,0.00022001,66036.0,66027.0,0.36794395]
[1773009859431,0.00022001,66039.0,66030.0,0.04256732]
[1773009859632,0.00178001,66039.0,66032.0,0.41051127]
[1773009859881,0.07749291,66039.0,66032.0,0.41051127]
[1773009860028,0.07749291,66039.0,66032.0,0.04256732]
[1773009860231,0.07749291,66039.0,66029.0,0.0757243]
[1773009860691,0.04328539,66038.0,66029.0,0.0757243]
[1773009862346,0.07571512,66037.0,66025.0,0.36950395]
[1773009862585,0.07571512,66037.0,66026.0,0.04256732]
[1773009862708,0.07571512,66037.0,66026.0,0.36794395]
[1773009862914,0.07727398,66038.0,66027.0,0.04256732]
[1773009863166,0.00156,66038.0,66027.0,0.04256732]
[1773009863451,0.00156,66038.0,66029.0,0.41051127]
[1773009864814,0.04328539,66037.0,66026.0,0.07572774]
[1773009866034,0.04328539,66037.0,66026.0,0.07592774]
[1773009866934,0.07571627,66036.0,66026.0,0.07592774]
[1773009868464,0.00156,66035.0,66026.0,0.07592774]
[1773009868890,0.00156,66035.0,66026.0,0.0002]
[1773009871069,0.00022001,66045.0,66028.0,0.04256732]
[1773009871427,0.00156,66042.0,66031.0,0.41051127]
[1773009871821,0.00156,66042.0,66029.0,0.00156]
[1773009872579,0.00156,66042.0,66030.0,0.41051127]
[1773009873799,0.07571054,66041.0,66031.0,0.075722]
[1773009874151,0.07571054,66041.0,66032.0,0.39468154]
[1773009874446,0.04328539,66039.0,66026.0,0.07592726]
[1773009874620,0.04328539,66038.0,66026.0,0.07592726]
[1773009876142,0.11900051,66037.0,66026.0,0.0002]
[1773009876342,0.00156,66036.0,66026.0,0.0002]
[1773009876582,0.00156,66036.0,66026.0,0.0012]
[1773009876720,0.00156,66036.0,66026.0,0.0002]
[1773009877338,0.00022001,66047.0,66029.0,0.35211422]
[1773009877539,0.11920337,66052.0,66032.0,0.35211422]
[1773009877766,0.07596695,66051.0,66034.0,0.35211422]
[1773009878084,0.00156,66048.0,66038.0,0.1182813]
[1773009878242,0.00156,66048.0,66039.0,0.04256732]
[1773009878437,0.07596695,66051.0,66039.0,0.04256732]
[1773009878438,0.0002671,66051.0,66039.0,0.04256732]
[1773009878691,0.0002671,66051.0,66038.0,0.10864709]
[1773009878893,0.0002671,66051.0,66039.0,0.39248001]
[1773009879181,0.0018271,66051.0,66040.0,0.04036579]
[1773009879379,0.0002671,66051.0,66042.0,0.39248001]
[1773009879560,0.0759077,66061.0,66044.0,0.35211422]
[1773009879761,0.00156,66060.0,66045.0,0.04038786]
[1773009879960,0.00022001,66061.0,66050.0,0.04038786]
[1773009880158,0.00022001,66061.0,66051.0,0.35211422]
[1773009880159,0.00178001,66061.0,66051.0,0.35211422]
[1773009880341,0.00022001,66061.0,66051.0,0.35211422]
[1773009880543,0.00022001,66061.0,66052.0,0.39256106]
[1773009880972,0.00022001,66065.0,66053.0,0.0433623]
[1773009881176,0.00178001,66068.0,66052.0,0.0433623]
[1773009881373,0.00156,66067.0,66058.0,0.0433623]
[1773009881595,0.00156,66067.0,66059.0,0.0433623]
[1773009882143,0.00156,66066.0,66060.0,0.07568876]
[1773009882491,0.07601825,66068.0,66060.0,0.07568876]
[1773009882701,0.07567871,66069.0,66060.0,0.07568876]
[1773009882702,0.00156,66067.0,66060.0,0.07568876]
[1773009882903,0.00156,66067.0,66060.0,0.07580728]
[1773009883083,0.01651163,66069.0,66060.0,0.07580728]
[1773009883288,0.00156,66067.0,66060.0,0.07580728]
[1773009883938,0.00022001,66061.0,66060.0,0.07580728]
[1773009884417,0.00022001,66061.0,66060.0,0.00011852]
[1773009885226,0.36356716,66058.0,66040.0,0.0811516]
[1773009885575,0.36356716,66052.0,66040.0,0.00583523]
[1773009885864,0.0419074,66048.0,66040.0,0.08154688]
[1773009886021,0.00156,66047.0,66040.0,0.08154688]
[1773009886421,0.00156,66047.0,66040.0,0.08254688]
[1773009886664,0.00156,66047.0,66040.0,0.08154688]
[1773009890475,0.0419074,66046.0,66040.0,0.00583523]
[1773009890672,0.0757035,66048.0,66040.0,0.08154686]
[1773009890859,0.00156,66045.0,66040.0,0.08154686]
[1773009891085,0.0757035,66048.0,66040.0,0.08154686]
[1773009891272,0.00156,66047.0,66040.0,0.08154686]
[1773009891478,0.00156,66046.0,66040.0,0.08154686]
[1773009893075,0.00156,66045.0,66040.0,0.08154648]
[1773009893262,0.0434674,66045.0,66040.0,0.08154648]
[1773009893670,0.00156,66045.0,66040.0,0.08154648]
[1773009894334,0.00156,66045.0,66040.0,0.00583523]
[1773009894689,0.0419074,66042.0,66032.0,0.07595025]
[1773009894890,0.0419074,66040.0,66032.0,0.00034853]
[1773009895071,0.0419074,66038.0,66030.0,0.07572302]
[1773009895276,0.04202584,66038.0,66030.0,0.07572302]
[1773009895476,0.04202584,66038.0,66030.0,0.07585642]
[1773009896002,0.00011844,66038.0,66030.0,0.05085642]
[1773009896660,0.0419074,66042.0,66030.0,0.05085642]
[1773009896661,0.00156,66044.0,66032.0,0.0433623]
[1773009896809,0.00156,66044.0,66031.0,0.00156]
[1773009896990,0.00156,66044.0,66035.0,0.35211422]
[1773009897204,0.00022001,66047.0,66037.0,0.35211422]
[1773009897399,0.00156,66046.0,66039.0,0.35211422]
[1773009897599,0.00156,66046.0,66040.0,0.0433623]
[1773009897795,0.00022001,66047.0,66040.0,0.0433623]
[1773009897987,0.00022001,66042.0,66040.0,0.0433623]
[1773009899003,0.00022001,66042.0,66041.0,0.07571054]
[1773009899837,0.00022001,66042.0,66040.0,0.07571148]
[1773009901023,0.00156,66046.0,66040.0,0.07571148]
[1773009901860,0.00156,66045.0,66038.0,0.0001334]
[1773009902197,0.00156,66046.0,66038.0,0.0001334]
[1773009902707,0.00544,66066.0,66042.0,0.0433623]
[1773009902940,0.00544,66066.0,66045.0,0.37049567]
[1773009903141,0.00156,66065.0,66044.0,0.0433623]
[1773009903343,0.00156,66064.0,66044.0,0.0433623]
[1773009903493,0.0419074,66071.0,66048.0,0.0433623]
[1773009903691,0.0419074,66071.0,66052.0,0.07569793]
[1773009903897,0.00156,66071.0,66052.0,0.07569793]
[1773009904065,0.00022001,66075.0,66052.0,0.07569793]
[1773009904266,0.00156,66074.0,66056.0,0.0433623]
[1773009904492,0.00023,66080.0,66061.0,0.0433623]
[1773009904690,0.00023,66080.0,66064.0,0.37049567]
[1773009904913,0.00156,66079.0,66067.0,0.0433623]
[1773009905112,0.00156,66079.0,66069.0,0.37049567]
[1773009905316,0.11756801,66085.0,66070.0,0.0433623]
[1773009905317,0.0419074,66085.0,66070.0,0.0433623]
[1773009905530,0.00156,66084.0,66073.0,0.37049567]
[1773009905819,0.00156,66083.0,66076.0,0.07567044]
[1773009905966,0.00156,66084.0,66076.0,0.07567044]
[1773009906185,0.00011857,66085.0,66077.0,0.04277736]
[1773009906386,0.00011857,66085.0,66078.0,0.04277736]
[1773009906672,0.00167857,66085.0,66078.0,0.04277736]
[1773009906846,0.01135768,66091.0,66079.0,0.34481917]
[1773009906847,0.08701102,66091.0,66079.0,0.34481917]
[1773009907055,0.08701102,66091.0,66083.0,0.34481917]
[1773009907212,0.08857102,66091.0,66083.0,0.3877151]
[1773009907414,0.07565097,66093.0,66084.0,0.04277736]
[1773009907615,0.07721097,66093.0,66085.0,0.38759653]
[1773009907827,0.07721097,66093.0,66083.0,0.00011857]
[1773009908143,0.00156,66093.0,66083.0,0.00011857]
[1773009909855,0.04237981,66093.0,66083.0,0.00011857]
[1773009910055,0.00156,66092.0,66083.0,0.00011857]
[1773009910622,0.07565326,66091.0,66083.0,0.00011857]
[1773009911957,0.16690342,66117.0,66085.0,0.04239615]
[1773009911958,0.004,66099.0,66085.0,0.04239615]
[1773009912157,0.00156,66098.0,66087.0,0.04239615]
[1773009912558,0.00156,66098.0,66087.0,0.38721532]
[1773009912763,0.00156,66097.0,66088.0,0.0756567]
[1773009913236,0.37067567,66096.0,66067.0,0.07567966]
[1773009913392,0.04237981,66090.0,66070.0,0.04239615]
[1773009913608,0.00022001,66091.0,66073.0,0.34481917]
[1773009913808,0.00011848,66096.0,66071.0,0.00156]
[1773009913809,0.04237981,66090.0,66074.0,0.04239615]
[1773009914009,0.00156,66090.0,66077.0,0.34481917]
[1773009914212,0.00156,66090.0,66080.0,0.04239615]
[1773009914379,0.00156,66090.0,66071.0,0.00156]
[1773009914585,0.04237981,66087.0,66071.0,0.00156]
[1773009914789,0.04237981,66084.0,66074.0,0.07567273]
[1773009914988,0.04393981,66083.0,66074.0,0.07567273]
[1773009915192,0.00156,66082.0,66074.0,0.07567273]
[1773009915855,0.04237981,66088.0,66074.0,0.07567273]
[1773009915856,0.07565395,66091.0,66077.0,0.34481917]
[1773009916025,0.00156,66090.0,66079.0,0.34481917]
[1773009916226,0.00156,66090.0,66081.0,0.34481917]
[1773009916582,0.00156,66090.0,66080.0,0.04239615]
[1773009916583,0.2008,66118.0,66080.0,0.04239615]
[1773009916759,0.00544,66118.0,66084.0,0.04239615]
[1773009916957,0.07587911,66114.0,66087.0,0.34481917]
[1773009917154,0.07587911,66114.0,66090.0,0.04239615]
[1773009917306,0.07587911,66114.0,66092.0,0.04239615]
[1773009917514,0.00156,66113.0,66096.0,0.04239615]